[Event "Titled Tuesday Blitz November 07 Early 2023"]
[White "Asavasaetakul, Chawit"]
[Black "Yeletsky, Ivan"]
[WhiteFideId "6204856"]
[BlackFideId "24180327"]
[WhiteElo "2666"]
[BlackElo "2932"]
[Result "0-1"]
[Round "9"]
[TimeControl "180+1"]
[Date "2023.11.07"]
[WhiteClock "0:00:13"]
[BlackClock "0:00:19"]
[Board "24"]

1. e4 {[%clk 0:03:00]}  g6 {[%clk 0:02:58]} 2. d4 {[%clk 0:03:00]}  Bg7 {[%clk 0:02:59]} 3. Nf3 {[%clk 0:02:58]}  d6 {[%clk 0:02:59]} 4. Bc4 {[%clk 0:02:58]}  Nf6 {[%clk 0:02:58]} 5. Qe2 {[%clk 0:02:54]}  O-O {[%clk 0:02:58]} 6. O-O {[%clk 0:02:53]}  Nfd7 {[%clk 0:02:57]} 7. e5 {[%clk 0:02:45]}  Nb6 {[%clk 0:02:57]} 8. Bb3 {[%clk 0:02:45]}  Bg4 {[%clk 0:02:55]} 9. h3 {[%clk 0:02:40]}  Bxf3 {[%clk 0:02:54]} 10. Qxf3 {[%clk 0:02:41]}  Nc6 {[%clk 0:02:49]} 11. exd6 {[%clk 0:02:39]}  Nxd4 {[%clk 0:02:47]} 12. Qxb7 {[%clk 0:02:39]}  Ne2+ {[%clk 0:02:34]} 13. Kh1 {[%clk 0:02:37]}  Nxc1 {[%clk 0:02:34]} 14. dxe7 {[%clk 0:02:21]}  Qxe7 {[%clk 0:02:35]} 15. Rxc1 {[%clk 0:02:22]}  Bxb2 {[%clk 0:02:33]} 16. Nd2 {[%clk 0:02:20]}  Bxa1 {[%clk 0:02:05]} 17. Rxa1 {[%clk 0:02:20]}  Kg7 {[%clk 0:01:45]} 18. Nf3 {[%clk 0:02:14]}  a5 {[%clk 0:01:41]} 19. a4 {[%clk 0:02:12]}  Rfe8 {[%clk 0:01:27]} 20. Rd1 {[%clk 0:01:48]}  Rad8 {[%clk 0:01:26]} 21. Rf1 {[%clk 0:01:39]}  Qc5 {[%clk 0:01:09]} 22. Kg1 {[%clk 0:01:30]}  h6 {[%clk 0:01:09]} 23. Ne1 {[%clk 0:01:08]}  Rd1 {[%clk 0:01:06]} 24. Nd3 {[%clk 0:01:08]}  Rxf1+ {[%clk 0:01:06]} 25. Kxf1 {[%clk 0:01:09]}  Qd4 {[%clk 0:01:03]} 26. g3 {[%clk 0:01:06]}  Qe4 {[%clk 0:01:00]} 27. Qxe4 {[%clk 0:00:49]}  Rxe4 {[%clk 0:01:00]} 28. Nc5 {[%clk 0:00:49]}  Re5 {[%clk 0:00:55]} 29. Nd3 {[%clk 0:00:50]}  Re7 {[%clk 0:00:54]} 30. Nc5 {[%clk 0:00:49]}  c6 {[%clk 0:00:48]} 31. f4 {[%clk 0:00:47]}  Nd5 {[%clk 0:00:43]} 32. Kf2 {[%clk 0:00:47]}  Nc3 {[%clk 0:00:41]} 33. Kf3 {[%clk 0:00:45]}  h5 {[%clk 0:00:41]} 34. g4 {[%clk 0:00:45]}  h4 {[%clk 0:00:42]} 35. g5 {[%clk 0:00:45]}  Nd5 {[%clk 0:00:37]} 36. Kg4 {[%clk 0:00:43]}  Re3 {[%clk 0:00:34]} 37. Nb7 {[%clk 0:00:39]}  Nc3 {[%clk 0:00:18]} 38. Nxa5 {[%clk 0:00:39]}  Ne4 {[%clk 0:00:18]} 39. Kxh4 {[%clk 0:00:13]}  Nf2 {[%clk 0:00:19]} 0-1


[Site "https://www.chess.com"]

[Event "Titled Tuesday Blitz November 07 Early 2023"]
[White "Baskakov, Egor"]
[Black "Liyanage, Ranindu Dilshan"]
[WhiteFideId "24197866"]
[BlackFideId "9915834"]
[WhiteElo "2911"]
[BlackElo "2777"]
[Result "1-0"]
[Round "9"]
[TimeControl "180+1"]
[Date "2023.11.07"]
[WhiteClock "0:02:01"]
[BlackClock "0:00:36"]
[Board "27"]

1. e4 {[%clk 0:03:00]}  c5 {[%clk 0:02:59]} 2. Nf3 {[%clk 0:03:00]}  Nc6 {[%clk 0:03:00]} 3. Nc3 {[%clk 0:03:01]}  g6 {[%clk 0:02:57]} 4. d4 {[%clk 0:03:00]}  cxd4 {[%clk 0:02:57]} 5. Nxd4 {[%clk 0:03:01]}  Bg7 {[%clk 0:02:57]} 6. Nde2 {[%clk 0:03:02]}  Nf6 {[%clk 0:02:54]} 7. g3 {[%clk 0:03:01]}  d6 {[%clk 0:02:54]} 8. Bg2 {[%clk 0:03:02]}  O-O {[%clk 0:02:53]} 9. h3 {[%clk 0:03:02]}  Rb8 {[%clk 0:02:48]} 10. a4 {[%clk 0:03:01]}  a6 {[%clk 0:02:47]} 11. O-O {[%clk 0:03:02]}  b5 {[%clk 0:02:47]} 12. axb5 {[%clk 0:03:03]}  axb5 {[%clk 0:02:48]} 13. Be3 {[%clk 0:03:03]}  b4 {[%clk 0:02:42]} 14. Nd5 {[%clk 0:03:02]}  Nxd5 {[%clk 0:02:42]} 15. exd5 {[%clk 0:03:03]}  Ne5 {[%clk 0:02:42]} 16. b3 {[%clk 0:03:04]}  Bb7 {[%clk 0:02:25]} 17. Ra7 {[%clk 0:03:00]}  Qc8 {[%clk 0:02:02]} 18. Nd4 {[%clk 0:02:54]}  Kh8 {[%clk 0:01:52]} 19. f4 {[%clk 0:02:34]}  Qc3 {[%clk 0:01:39]} 20. Bf2 {[%clk 0:02:34]}  Nd7 {[%clk 0:01:37]} 21. Nc6 {[%clk 0:02:32]}  Bxc6 {[%clk 0:01:35]} 22. dxc6 {[%clk 0:02:31]}  Nc5 {[%clk 0:01:35]} 23. Rxe7 {[%clk 0:02:31]}  Qf6 {[%clk 0:01:16]} 24. Rfe1 {[%clk 0:02:28]}  Rbc8 {[%clk 0:01:15]} 25. Qd5 {[%clk 0:02:18]}  h6 {[%clk 0:01:06]} 26. c7 {[%clk 0:02:18]}  Ne6 {[%clk 0:00:52]} 27. Qxd6 {[%clk 0:02:07]}  Qc3 {[%clk 0:00:50]} 28. R1xe6 {[%clk 0:02:02]}  fxe6 {[%clk 0:00:50]} 29. Rxg7 {[%clk 0:02:02]}  Qxg7 {[%clk 0:00:50]} 30. Bd4 {[%clk 0:02:00]}  Rf6 {[%clk 0:00:36]} 31. Qd8+ {[%clk 0:02:01]} 1-0


[Site "https://www.chess.com"]

[Event "Titled Tuesday Blitz November 07 Early 2023"]
[White "Zhigalko, Sergei"]
[Black "Csonka, Balazs"]
[WhiteFideId "13502956"]
[BlackFideId "742910"]
[WhiteElo "2885"]
[BlackElo "2767"]
[Result "1-0"]
[Round "9"]
[TimeControl "180+1"]
[Date "2023.11.07"]
[WhiteClock "0:00:02"]
[BlackClock "0:00:03"]
[Board "28"]

1. e4 {[%clk 0:03:00]}  e5 {[%clk 0:02:59]} 2. Nf3 {[%clk 0:03:00]}  Nf6 {[%clk 0:03:00]} 3. d4 {[%clk 0:02:59]}  Nxe4 {[%clk 0:02:59]} 4. Bd3 {[%clk 0:02:59]}  d5 {[%clk 0:02:55]} 5. Nxe5 {[%clk 0:03:00]}  Bd6 {[%clk 0:02:53]} 6. O-O {[%clk 0:03:00]}  O-O {[%clk 0:02:53]} 7. c4 {[%clk 0:02:54]}  Bxe5 {[%clk 0:02:53]} 8. dxe5 {[%clk 0:02:54]}  Nc6 {[%clk 0:02:53]} 9. Bf4 {[%clk 0:02:14]}  Nc5 {[%clk 0:02:00]} 10. cxd5 {[%clk 0:02:09]}  Nxd3 {[%clk 0:02:00]} 11. Qxd3 {[%clk 0:02:06]}  Nb4 {[%clk 0:01:58]} 12. Qg3 {[%clk 0:01:55]}  Kh8 {[%clk 0:01:48]} 13. Nc3 {[%clk 0:00:43]}  Nxd5 {[%clk 0:01:46]} 14. Bg5 {[%clk 0:00:43]}  Nxc3 {[%clk 0:01:44]} 15. bxc3 {[%clk 0:00:37]}  Qd5 {[%clk 0:01:37]} 16. Rad1 {[%clk 0:00:36]}  Qxa2 {[%clk 0:01:26]} 17. Bf6 {[%clk 0:00:35]}  gxf6 {[%clk 0:01:00]} 18. exf6 {[%clk 0:00:35]}  Bg4 {[%clk 0:00:58]} 19. Qxg4 {[%clk 0:00:33]}  Rg8 {[%clk 0:00:58]} 20. Qf4 {[%clk 0:00:11]}  c5 {[%clk 0:00:46]} 21. Rd7 {[%clk 0:00:10]}  b5 {[%clk 0:00:42]} 22. g3 {[%clk 0:00:09]}  a5 {[%clk 0:00:40]} 23. Re1 {[%clk 0:00:08]}  Rg6 {[%clk 0:00:24]} 24. Ree7 {[%clk 0:00:06]}  Rf8 {[%clk 0:00:23]} 25. c4 {[%clk 0:00:03]}  Kg8 {[%clk 0:00:15]} 26. cxb5 {[%clk 0:00:03]}  a4 {[%clk 0:00:15]} 27. Kg2 {[%clk 0:00:02]}  a3 {[%clk 0:00:14]} 28. b6 {[%clk 0:00:02]}  Qb3 {[%clk 0:00:10]} 29. Ra7 {[%clk 0:00:02]}  a2 {[%clk 0:00:08]} 30. b7 {[%clk 0:00:02]}  Qb2 {[%clk 0:00:06]} 31. Ra8 {[%clk 0:00:02]}  Rxf6 {[%clk 0:00:03]} 32. Qg5+ {[%clk 0:00:01]}  Rg6 {[%clk 0:00:02]} 33. Qf4 {[%clk 0:00:01]}  a1=Q {[%clk 0:00:01]} 34. Rxf8+ {[%clk 0:00:02]}  Kxf8 {[%clk 0:00:02]} 35. b8=Q+ {[%clk 0:00:02]}  Kxe7 {[%clk 0:00:03]} 36. Qbc7+ {[%clk 0:00:01]}  Ke6 {[%clk 0:00:03]} 37. Qfxf7# {[%clk 0:00:02]} 1-0


[Site "https://www.chess.com"]

[Event "Titled Tuesday Blitz November 07 Early 2023"]
[White "Timofeev, Artyom"]
[Black "Samunenkov, Ihor"]
[WhiteFideId "4140419"]
[BlackFideId "14187086"]
[WhiteElo "2849"]
[BlackElo "2761"]
[Result "1/2-1/2"]
[Round "9"]
[TimeControl "180+1"]
[Date "2023.11.07"]
[WhiteClock "0:00:30"]
[BlackClock "0:00:13"]
[Board "29"]

1. c4 {[%clk 0:03:00]}  e6 {[%clk 0:02:57]} 2. Nc3 {[%clk 0:02:58]}  d5 {[%clk 0:02:58]} 3. d4 {[%clk 0:02:58]}  a6 {[%clk 0:02:58]} 4. g3 {[%clk 0:02:52]}  dxc4 {[%clk 0:02:53]} 5. Bg2 {[%clk 0:02:52]}  Nf6 {[%clk 0:02:47]} 6. Bg5 {[%clk 0:02:49]}  Nbd7 {[%clk 0:02:41]} 7. e4 {[%clk 0:02:44]}  Be7 {[%clk 0:02:37]} 8. e5 {[%clk 0:02:32]}  Nd5 {[%clk 0:02:35]} 9. Bxe7 {[%clk 0:02:32]}  Nxe7 {[%clk 0:02:35]} 10. Nge2 {[%clk 0:02:30]}  O-O {[%clk 0:02:28]} 11. O-O {[%clk 0:02:28]}  c5 {[%clk 0:02:27]} 12. Rc1 {[%clk 0:02:07]}  Rb8 {[%clk 0:02:19]} 13. Ne4 {[%clk 0:02:04]}  cxd4 {[%clk 0:02:18]} 14. Rxc4 {[%clk 0:01:52]}  d3 {[%clk 0:02:18]} 15. Qxd3 {[%clk 0:01:20]}  Nxe5 {[%clk 0:02:18]} 16. Qxd8 {[%clk 0:01:20]}  Rxd8 {[%clk 0:02:18]} 17. Rc2 {[%clk 0:01:20]}  Bd7 {[%clk 0:02:07]} 18. Nc5 {[%clk 0:01:20]}  Bc6 {[%clk 0:02:06]} 19. Rfc1 {[%clk 0:01:08]}  Nd3 {[%clk 0:02:01]} 20. Nxd3 {[%clk 0:01:07]}  Rxd3 {[%clk 0:02:02]} 21. Nc3 {[%clk 0:00:58]}  g6 {[%clk 0:01:50]} 22. Bxc6 {[%clk 0:00:56]}  Nxc6 {[%clk 0:01:50]} 23. Ne4 {[%clk 0:00:57]}  Kg7 {[%clk 0:01:42]} 24. Nc5 {[%clk 0:00:57]}  Rd5 {[%clk 0:01:17]} 25. Nxa6 {[%clk 0:00:54]}  Rbd8 {[%clk 0:01:00]} 26. Nc7 {[%clk 0:00:54]}  Ra5 {[%clk 0:00:59]} 27. b3 {[%clk 0:00:42]}  Rc8 {[%clk 0:00:45]} 28. b4 {[%clk 0:00:33]}  Ra4 {[%clk 0:00:18]} 29. Nxe6+ {[%clk 0:00:30]}  fxe6 {[%clk 0:00:16]} 30. b5 {[%clk 0:00:30]}  Kf6 {[%clk 0:00:07]} 31. bxc6 {[%clk 0:00:30]}  Rxc6 {[%clk 0:00:08]} 32. Rxc6 {[%clk 0:00:28]}  bxc6 {[%clk 0:00:09]} 33. Rxc6 {[%clk 0:00:28]}  Rxa2 {[%clk 0:00:09]} 34. Rc7 {[%clk 0:00:29]}  h5 {[%clk 0:00:09]} 35. h4 {[%clk 0:00:29]}  Ra1+ {[%clk 0:00:10]} 36. Kg2 {[%clk 0:00:29]}  Ra2 {[%clk 0:00:11]} 37. Rc8 {[%clk 0:00:29]}  Kf7 {[%clk 0:00:10]} 38. Kf3 {[%clk 0:00:29]}  Kf6 {[%clk 0:00:10]} 39. Rc6 {[%clk 0:00:28]}  Ra3+ {[%clk 0:00:11]} 40. Kf4 {[%clk 0:00:28]}  Ra4+ {[%clk 0:00:11]} 41. Ke3 {[%clk 0:00:28]}  Ra3+ {[%clk 0:00:11]} 42. Ke4 {[%clk 0:00:28]}  Ra4+ {[%clk 0:00:12]} 43. Ke3 {[%clk 0:00:29]}  Ra3+ {[%clk 0:00:12]} 44. Ke4 {[%clk 0:00:29]}  Ra4+ {[%clk 0:00:13]} 45. Ke3 {[%clk 0:00:30]} 1/2-1/2


[Site "https://www.chess.com"]

[Event "Titled Tuesday Blitz November 07 Early 2023"]
[White "Pendos666"]
[Black "Orozbaev, Eldiar"]
[BlackFideId "13802240"]
[WhiteElo "2830"]
[BlackElo "2747"]
[Result "0-1"]
[Round "9"]
[TimeControl "180+1"]
[Date "2023.11.07"]
[WhiteClock "0:00:46"]
[BlackClock "0:00:49"]
[Board "30"]

1. e4 {[%clk 0:03:00]}  e6 {[%clk 0:03:00]} 2. d4 {[%clk 0:03:00]}  d5 {[%clk 0:03:01]} 3. Nd2 {[%clk 0:03:00]}  Nf6 {[%clk 0:03:00]} 4. e5 {[%clk 0:03:01]}  Nfd7 {[%clk 0:03:01]} 5. c3 {[%clk 0:03:01]}  c5 {[%clk 0:03:01]} 6. f4 {[%clk 0:03:02]}  Nc6 {[%clk 0:03:00]} 7. Ndf3 {[%clk 0:03:02]}  f6 {[%clk 0:02:59]} 8. Bd3 {[%clk 0:03:02]}  Qb6 {[%clk 0:02:51]} 9. Ne2 {[%clk 0:03:01]}  cxd4 {[%clk 0:02:51]} 10. cxd4 {[%clk 0:03:01]}  Bb4+ {[%clk 0:02:49]} 11. Bd2 {[%clk 0:03:00]}  O-O {[%clk 0:02:47]} 12. Bxb4 {[%clk 0:02:59]}  Qxb4+ {[%clk 0:02:45]} 13. Qd2 {[%clk 0:02:58]}  Qb6 {[%clk 0:02:43]} 14. Rc1 {[%clk 0:02:56]}  a5 {[%clk 0:02:28]} 15. Bb1 {[%clk 0:02:52]}  a4 {[%clk 0:02:26]} 16. Rc3 {[%clk 0:02:33]}  a3 {[%clk 0:02:21]} 17. b3 {[%clk 0:02:32]}  Ra5 {[%clk 0:01:50]} 18. h4 {[%clk 0:02:28]}  f5 {[%clk 0:01:38]} 19. h5 {[%clk 0:02:19]}  Ndb8 {[%clk 0:01:36]} 20. Rg1 {[%clk 0:02:10]}  Bd7 {[%clk 0:01:28]} 21. g4 {[%clk 0:02:07]}  Ne7 {[%clk 0:01:29]} 22. gxf5 {[%clk 0:01:49]}  Nxf5 {[%clk 0:01:20]} 23. Ng3 {[%clk 0:01:45]}  Nc6 {[%clk 0:01:14]} 24. Nxf5 {[%clk 0:01:37]}  exf5 {[%clk 0:01:15]} 25. Kf2 {[%clk 0:01:22]}  Nd8 {[%clk 0:01:10]} 26. Ng5 {[%clk 0:01:11]}  h6 {[%clk 0:01:06]} 27. Nf3 {[%clk 0:01:11]}  Ne6 {[%clk 0:01:07]} 28. Kg3 {[%clk 0:01:07]}  Raa8 {[%clk 0:01:05]} 29. Nh4 {[%clk 0:01:03]}  Nxd4 {[%clk 0:01:02]} 30. Rd3 {[%clk 0:01:01]}  Ne2+ {[%clk 0:01:00]} 31. Qxe2 {[%clk 0:01:01]}  Qxg1+ {[%clk 0:01:01]} 32. Kh3 {[%clk 0:00:55]}  Qxb1 {[%clk 0:00:58]} 33. Rxd5 {[%clk 0:00:55]}  Bc6 {[%clk 0:00:57]} 34. Rd6 {[%clk 0:00:53]}  Qh1+ {[%clk 0:00:55]} 35. Kg3 {[%clk 0:00:53]}  Rad8 {[%clk 0:00:56]} 36. Qc4+ {[%clk 0:00:53]}  Bd5 {[%clk 0:00:53]} 37. Qc7 {[%clk 0:00:50]}  Rxd6 {[%clk 0:00:50]} 38. exd6 {[%clk 0:00:48]}  Qg1+ {[%clk 0:00:48]} 39. Kh3 {[%clk 0:00:46]}  Qg4+ {[%clk 0:00:49]} 0-1


[Site "https://www.chess.com"]

[Event "Titled Tuesday Blitz November 07 Early 2023"]
[White "Rakotomaharo, Fy Antenaina"]
[Black "Suyarov, Mukhammadzokhid"]
[WhiteFideId "13100050"]
[BlackFideId "14210495"]
[WhiteElo "2737"]
[BlackElo "2820"]
[Result "0-1"]
[Round "9"]
[TimeControl "180+1"]
[Date "2023.11.07"]
[WhiteClock "0:00:06"]
[BlackClock "0:00:10"]
[Board "31"]

1. d4 {[%clk 0:02:50]}  e6 {[%clk 0:02:56]} 2. Nf3 {[%clk 0:02:40]}  Nf6 {[%clk 0:02:56]} 3. Bg5 {[%clk 0:02:40]}  b6 {[%clk 0:02:55]} 4. Nbd2 {[%clk 0:02:39]}  Bb7 {[%clk 0:02:55]} 5. e4 {[%clk 0:02:39]}  h6 {[%clk 0:02:56]} 6. Bxf6 {[%clk 0:02:39]}  Qxf6 {[%clk 0:02:57]} 7. c3 {[%clk 0:02:39]}  g6 {[%clk 0:02:57]} 8. Bd3 {[%clk 0:02:38]}  Bg7 {[%clk 0:02:57]} 9. Qe2 {[%clk 0:02:39]}  Qe7 {[%clk 0:02:56]} 10. O-O-O {[%clk 0:02:32]}  d6 {[%clk 0:02:56]} 11. Kb1 {[%clk 0:02:29]}  Nd7 {[%clk 0:02:56]} 12. h4 {[%clk 0:02:28]}  O-O-O {[%clk 0:02:45]} 13. Ba6 {[%clk 0:02:27]}  Kb8 {[%clk 0:02:45]} 14. Bxb7 {[%clk 0:02:25]}  Kxb7 {[%clk 0:02:46]} 15. a4 {[%clk 0:02:22]}  Rhe8 {[%clk 0:02:42]} 16. a5 {[%clk 0:02:21]}  a6 {[%clk 0:02:38]} 17. axb6 {[%clk 0:02:09]}  cxb6 {[%clk 0:02:39]} 18. e5 {[%clk 0:02:08]}  dxe5 {[%clk 0:02:34]} 19. dxe5 {[%clk 0:02:08]}  b5 {[%clk 0:02:20]} 20. Qe4+ {[%clk 0:02:01]}  Kb6 {[%clk 0:02:14]} 21. Nd4 {[%clk 0:01:53]}  Qc5 {[%clk 0:02:08]} 22. f4 {[%clk 0:01:28]}  Qc7 {[%clk 0:02:00]} 23. N2b3 {[%clk 0:01:19]}  Nc5 {[%clk 0:01:51]} 24. Nxc5 {[%clk 0:01:19]}  Qxc5 {[%clk 0:01:52]} 25. Nb3 {[%clk 0:01:16]}  Qc7 {[%clk 0:01:41]} 26. Qe3+ {[%clk 0:01:12]}  Kc6 {[%clk 0:01:33]} 27. Nc5 {[%clk 0:00:50]}  Qb6 {[%clk 0:01:24]} 28. Qe4+ {[%clk 0:00:44]}  Rd5 {[%clk 0:01:15]} 29. Nd3 {[%clk 0:00:34]}  Kc7 {[%clk 0:01:14]} 30. Nb4 {[%clk 0:00:33]}  Rdd8 {[%clk 0:01:09]} 31. h5 {[%clk 0:00:32]}  Qb7 {[%clk 0:01:02]} 32. Qc2 {[%clk 0:00:23]}  a5 {[%clk 0:00:58]} 33. Nd3 {[%clk 0:00:23]}  gxh5 {[%clk 0:00:57]} 34. Nc5 {[%clk 0:00:21]}  Qc6 {[%clk 0:00:53]} 35. Ne4 {[%clk 0:00:20]}  Bf8 {[%clk 0:00:47]} 36. Nf6 {[%clk 0:00:20]}  Rxd1+ {[%clk 0:00:47]} 37. Rxd1 {[%clk 0:00:20]}  Rd8 {[%clk 0:00:47]} 38. Rxd8 {[%clk 0:00:19]}  Kxd8 {[%clk 0:00:48]} 39. Qh7 {[%clk 0:00:19]}  Qb7 {[%clk 0:00:32]} 40. Qg8 {[%clk 0:00:16]}  Qe7 {[%clk 0:00:32]} 41. Nxh5 {[%clk 0:00:15]}  b4 {[%clk 0:00:28]} 42. cxb4 {[%clk 0:00:16]}  Qxb4 {[%clk 0:00:28]} 43. Nf6 {[%clk 0:00:14]}  Kc8 {[%clk 0:00:16]} 44. Qg3 {[%clk 0:00:12]}  Bc5 {[%clk 0:00:15]} 45. Qd3 {[%clk 0:00:12]}  a4 {[%clk 0:00:13]} 46. Qd7+ {[%clk 0:00:10]}  Kb8 {[%clk 0:00:13]} 47. Qxf7 {[%clk 0:00:09]}  a3 {[%clk 0:00:10]} 48. Qe8+ {[%clk 0:00:09]}  Ka7 {[%clk 0:00:09]} 49. Qd7+ {[%clk 0:00:10]}  Ka6 {[%clk 0:00:09]} 50. Qxe6+ {[%clk 0:00:10]}  Ka5 {[%clk 0:00:09]} 51. Qa2 {[%clk 0:00:05]}  Qe1+ {[%clk 0:00:09]} 52. Kc2 {[%clk 0:00:06]}  Qe2+ {[%clk 0:00:09]} 53. Kc3 {[%clk 0:00:04]}  Bd4+ {[%clk 0:00:09]} 54. Kxd4 {[%clk 0:00:04]}  Qxb2+ {[%clk 0:00:09]} 55. Qxb2 {[%clk 0:00:03]}  axb2 {[%clk 0:00:10]} 56. e6 {[%clk 0:00:03]}  b1=Q {[%clk 0:00:11]} 57. e7 {[%clk 0:00:03]}  Qb4+ {[%clk 0:00:11]} 58. Ke5 {[%clk 0:00:03]}  Qxe7+ {[%clk 0:00:12]} 59. Kf5 {[%clk 0:00:03]}  Qf7 {[%clk 0:00:12]} 60. Ke5 {[%clk 0:00:04]}  Qg6 {[%clk 0:00:12]} 61. Ne4 {[%clk 0:00:05]}  Qxg2 {[%clk 0:00:12]} 62. f5 {[%clk 0:00:05]}  Qh2+ {[%clk 0:00:13]} 63. Ke6 {[%clk 0:00:06]}  Qf4 {[%clk 0:00:13]} 64. Nd6 {[%clk 0:00:06]}  h5 {[%clk 0:00:13]} 65. f6 {[%clk 0:00:06]}  h4 {[%clk 0:00:14]} 66. f7 {[%clk 0:00:07]}  h3 {[%clk 0:00:14]} 67. Nf5 {[%clk 0:00:08]}  Qb4 {[%clk 0:00:14]} 68. Nd6 {[%clk 0:00:08]}  Qf4 {[%clk 0:00:11]} 69. Nf5 {[%clk 0:00:08]}  Qb8 {[%clk 0:00:11]} 70. Ne7 {[%clk 0:00:07]}  Ka4 {[%clk 0:00:09]} 71. Ng6 {[%clk 0:00:07]}  h2 {[%clk 0:00:09]} 72. f8=Q {[%clk 0:00:06]}  Qxf8 {[%clk 0:00:09]} 73. Nxf8 {[%clk 0:00:07]}  h1=Q {[%clk 0:00:10]} 74. Nd7 {[%clk 0:00:06]}  Kb5 {[%clk 0:00:11]} 75. Ne5 {[%clk 0:00:06]}  Kc5 {[%clk 0:00:11]} 76. Nd7+ {[%clk 0:00:06]}  Kd4 {[%clk 0:00:12]} 77. Nf6 {[%clk 0:00:07]}  Qf3 {[%clk 0:00:10]} 78. Nd7 {[%clk 0:00:06]}  Qd5+ {[%clk 0:00:09]} 79. Ke7 {[%clk 0:00:07]}  Qc6 {[%clk 0:00:09]} 80. Nf6 {[%clk 0:00:07]}  Ke5 {[%clk 0:00:10]} 81. Nd7+ {[%clk 0:00:07]}  Kf5 {[%clk 0:00:10]} 82. Nf6 {[%clk 0:00:06]}  Qxf6+ {[%clk 0:00:10]} 0-1


[Site "https://www.chess.com"]

[Event "Titled Tuesday Blitz November 07 Early 2023"]
[White "Molina, Roberto Junio Brito"]
[Black "Dowgird, Filip"]
[WhiteFideId "2109450"]
[BlackFideId "1121235"]
[WhiteElo "2803"]
[BlackElo "2672"]
[Result "0-1"]
[Round "9"]
[TimeControl "180+1"]
[Date "2023.11.07"]
[WhiteClock "0:00:00"]
[BlackClock "0:00:08"]
[Board "35"]

1. e4 {[%clk 0:02:58]}  d6 {[%clk 0:02:59]} 2. d4 {[%clk 0:02:13]}  Nf6 {[%clk 0:02:59]} 3. Nc3 {[%clk 0:02:12]}  c6 {[%clk 0:02:59]} 4. f3 {[%clk 0:02:11]}  b5 {[%clk 0:02:55]} 5. Be3 {[%clk 0:02:11]}  b4 {[%clk 0:02:54]} 6. Nce2 {[%clk 0:02:10]}  a5 {[%clk 0:02:49]} 7. a3 {[%clk 0:02:09]}  Na6 {[%clk 0:02:43]} 8. Nc1 {[%clk 0:02:03]}  e6 {[%clk 0:02:29]} 9. Nge2 {[%clk 0:01:54]}  d5 {[%clk 0:02:29]} 10. e5 {[%clk 0:01:54]}  Nd7 {[%clk 0:02:29]} 11. f4 {[%clk 0:01:52]}  c5 {[%clk 0:02:28]} 12. Kf2 {[%clk 0:01:49]}  cxd4 {[%clk 0:02:24]} 13. Nxd4 {[%clk 0:01:47]}  bxa3 {[%clk 0:02:22]} 14. bxa3 {[%clk 0:01:46]}  Nac5 {[%clk 0:02:21]} 15. Bd3 {[%clk 0:01:46]}  Ba6 {[%clk 0:02:17]} 16. Ncb3 {[%clk 0:01:43]}  a4 {[%clk 0:02:07]} 17. Nxc5 {[%clk 0:01:43]}  Nxc5 {[%clk 0:02:02]} 18. Re1 {[%clk 0:01:36]}  Qd7 {[%clk 0:01:46]} 19. Kg1 {[%clk 0:01:31]}  Nxd3 {[%clk 0:01:43]} 20. cxd3 {[%clk 0:01:31]}  Be7 {[%clk 0:01:43]} 21. Qd2 {[%clk 0:01:14]}  O-O {[%clk 0:01:41]} 22. Nc2 {[%clk 0:01:05]}  Rfb8 {[%clk 0:01:22]} 23. Nb4 {[%clk 0:00:55]}  Qb5 {[%clk 0:01:11]} 24. Reb1 {[%clk 0:00:50]}  Bxb4 {[%clk 0:01:07]} 25. Rxb4 {[%clk 0:00:50]}  Qxd3 {[%clk 0:01:07]} 26. Rxa4 {[%clk 0:00:49]}  Rb1+ {[%clk 0:01:01]} 27. Rxb1 {[%clk 0:00:45]}  Qxb1+ {[%clk 0:01:01]} 28. Qc1 {[%clk 0:00:38]}  Qb5 {[%clk 0:00:40]} 29. Rb4 {[%clk 0:00:37]}  Qe2 {[%clk 0:00:37]} 30. Rb2 {[%clk 0:00:30]}  Qd3 {[%clk 0:00:33]} 31. h3 {[%clk 0:00:30]}  h6 {[%clk 0:00:31]} 32. Kh2 {[%clk 0:00:29]}  Bc4 {[%clk 0:00:25]} 33. Bc5 {[%clk 0:00:25]}  Qe4 {[%clk 0:00:18]} 34. Rf2 {[%clk 0:00:20]}  Rb8 {[%clk 0:00:17]} 35. Bb4 {[%clk 0:00:20]}  Rc8 {[%clk 0:00:16]} 36. Qc2 {[%clk 0:00:20]}  Qe3 {[%clk 0:00:15]} 37. Qd2 {[%clk 0:00:20]}  Qe4 {[%clk 0:00:12]} 38. Qc2 {[%clk 0:00:20]}  Qe3 {[%clk 0:00:12]} 39. Rf3 {[%clk 0:00:20]}  Qd4 {[%clk 0:00:09]} 40. Qc3 {[%clk 0:00:10]}  Qd1 {[%clk 0:00:09]} 41. Qd2 {[%clk 0:00:08]}  Qa1 {[%clk 0:00:05]} 42. Qc3 {[%clk 0:00:07]}  Qd1 {[%clk 0:00:05]} 43. Qd2 {[%clk 0:00:07]}  Qa1 {[%clk 0:00:06]} 44. f5 {[%clk 0:00:08]}  Qxe5+ {[%clk 0:00:05]} 45. Qf4 {[%clk 0:00:08]}  Qxf4+ {[%clk 0:00:06]} 46. Rxf4 {[%clk 0:00:09]}  e5 {[%clk 0:00:06]} 47. Rf2 {[%clk 0:00:09]}  f6 {[%clk 0:00:07]} 48. g4 {[%clk 0:00:09]}  d4 {[%clk 0:00:06]} 49. Kg3 {[%clk 0:00:09]}  e4 {[%clk 0:00:07]} 50. Kf4 {[%clk 0:00:09]}  e3 {[%clk 0:00:07]} 51. Rc2 {[%clk 0:00:10]}  Kf7 {[%clk 0:00:06]} 52. Rc1 {[%clk 0:00:09]}  Ke8 {[%clk 0:00:05]} 53. Ba5 {[%clk 0:00:09]}  Kf7 {[%clk 0:00:05]} 54. Bb6 {[%clk 0:00:09]}  e2 {[%clk 0:00:04]} 55. Bxd4 {[%clk 0:00:09]}  Re8 {[%clk 0:00:04]} 56. Bf2 {[%clk 0:00:09]}  Bb3 {[%clk 0:00:04]} 57. Be1 {[%clk 0:00:08]}  Bd1 {[%clk 0:00:04]} 58. Rc3 {[%clk 0:00:09]}  Rd8 {[%clk 0:00:03]} 59. Ke3 {[%clk 0:00:09]}  Re8+ {[%clk 0:00:03]} 60. Kf2 {[%clk 0:00:08]}  Ra8 {[%clk 0:00:03]} 61. Re3 {[%clk 0:00:08]}  Ra4 {[%clk 0:00:03]} 62. Bb4 {[%clk 0:00:08]}  Ra6 {[%clk 0:00:03]} 63. Re7+ {[%clk 0:00:08]}  Kg8 {[%clk 0:00:03]} 64. Re8+ {[%clk 0:00:08]}  Kh7 {[%clk 0:00:03]} 65. h4 {[%clk 0:00:08]}  Ra7 {[%clk 0:00:04]} 66. Kg3 {[%clk 0:00:06]}  Rd7 {[%clk 0:00:04]} 67. Re4 {[%clk 0:00:03]}  Rd3+ {[%clk 0:00:04]} 68. Kf2 {[%clk 0:00:02]}  Rd7 {[%clk 0:00:04]} 69. Re6 {[%clk 0:00:02]}  e1=Q+ {[%clk 0:00:04]} 70. Rxe1 {[%clk 0:00:02]}  Bxg4 {[%clk 0:00:05]} 71. Re7 {[%clk 0:00:02]}  Rxe7 {[%clk 0:00:05]} 72. Bxe7 {[%clk 0:00:03]}  Bxf5 {[%clk 0:00:05]} 73. Kg3 {[%clk 0:00:03]}  Bd7 {[%clk 0:00:05]} 74. Kf4 {[%clk 0:00:03]}  Kg6 {[%clk 0:00:06]} 75. Bd8 {[%clk 0:00:04]}  Kf7 {[%clk 0:00:06]} 76. Bc7 {[%clk 0:00:04]}  g5+ {[%clk 0:00:06]} 77. hxg5 {[%clk 0:00:05]}  hxg5+ {[%clk 0:00:07]} 78. Ke4 {[%clk 0:00:06]}  Kg6 {[%clk 0:00:07]} 79. Bd8 {[%clk 0:00:06]}  f5+ {[%clk 0:00:07]} 80. Ke5 {[%clk 0:00:07]}  f4 {[%clk 0:00:07]} 81. Bb6 {[%clk 0:00:06]}  Kh5 {[%clk 0:00:08]} 82. Ke4 {[%clk 0:00:06]}  Kg4 {[%clk 0:00:08]} 83. Bd8 {[%clk 0:00:06]}  Kh5 {[%clk 0:00:07]} 84. Kd3 {[%clk 0:00:07]}  g4 {[%clk 0:00:07]} 85. Ke2 {[%clk 0:00:07]}  Bc6 {[%clk 0:00:06]} 86. Kf2 {[%clk 0:00:06]}  g3+ {[%clk 0:00:06]} 87. Kg1 {[%clk 0:00:06]}  Kg4 {[%clk 0:00:06]} 88. Ba5 {[%clk 0:00:06]}  f3 {[%clk 0:00:07]} 89. Be1 {[%clk 0:00:06]}  Ba4 {[%clk 0:00:07]} 90. Kf1 {[%clk 0:00:06]}  Kh3 {[%clk 0:00:07]} 91. Kg1 {[%clk 0:00:06]}  Bb5 {[%clk 0:00:07]} 92. a4 {[%clk 0:00:00]}  Bxa4 {[%clk 0:00:08]} 0-1


[Site "https://www.chess.com"]